bitfinex/quotes_ETHUSD_20250425
["timestamp","ask_amount","ask_price","bid_price","bid_amount"]
[1745606706817,0.93391284,1802.9,1802.6,4.20360283]
[1745606707039,0.11481284,1802.9,1802.8,1.20360283]
[1745606707532,0.7533,1803.2,1802.9,0.55]
[1745606707881,0.10475994,1803.1,1802.9,0.55]
[1745606714239,0.10475994,1803.1,1802.8,4.854]
[1745606714442,0.74515075,1803.1,1802.8,3.0]
[1745606714629,0.10475994,1803.1,1802.9,0.65360283]
[1745606715320,0.10475994,1803.1,1802.9,0.70906201]
[1745606715659,0.10475994,1803.1,1803.0,3.55]
[1745606715959,0.4048936,1803.5,1803.0,0.55]
[1745606716158,1.07823969,1803.5,1803.2,3.0]
[1745606716360,0.10542652,1803.4,1803.1,5.50760283]
[1745606716936,0.7976,1803.3,1803.1,4.854]
[1745606717452,0.1054215,1803.2,1803.1,4.854]
[1745606717846,0.1054215,1803.2,1802.9,0.55]
[1745606718048,0.1054215,1803.2,1802.9,3.55]
[1745606718257,0.7606,1803.1,1802.8,4.854]
[1745606718553,0.10618198,1803.0,1802.8,4.854]
[1745606719323,0.8288,1802.9,1802.8,4.854]
[1745606719624,0.93448842,1802.9,1802.5,25.13960283]
[1745606719851,0.93448842,1802.9,1802.5,25.56139025]
[1745606720156,0.93448842,1802.9,1802.6,0.05546924]
[1745606720336,0.93448842,1802.9,1802.5,25.56139025]
[1745606720845,0.93448842,1802.9,1802.5,22.56139025]
[1745606721384,0.93448842,1802.9,1802.0,0.7625]
[1745606721385,0.8211,1802.7,1802.0,0.7625]
[1745606721662,0.10375801,1802.6,1802.3,7.854]
[1745606721865,0.8211,1802.7,1802.3,7.854]
[1745606722074,0.10375801,1802.6,1802.3,7.854]
[1745606722266,0.8211,1802.7,1802.4,1.20360283]
[1745606722425,0.8211,1802.7,1802.4,0.55]
[1745606723472,0.8211,1802.7,1802.3,7.854]
[1745606724242,7.00520257,1802.7,1802.3,4.854]
[1745606724444,0.768,1802.6,1802.3,4.854]
[1745606725080,5.54765272,1802.6,1802.3,4.854]
[1745606725259,0.768,1802.5,1802.3,4.854]
[1745606725467,0.768,1802.5,1802.2,0.55]
[1745606727778,6.94745156,1802.5,1802.0,9.27010283]
[1745606727978,6.94745156,1802.5,1802.1,0.55]
[1745606729090,0.799,1802.2,1801.9,0.04205113]
[1745606731109,0.779,1802.2,1802.0,0.65360283]
[1745606731315,6.11,1802.9,1802.1,0.60548845]
[1745606731454,5.54671362,1802.9,1802.3,0.65360283]
[1745606731807,11.09359212,1802.9,1802.3,0.65360283]
[1745606731961,11.09361362,1802.9,1802.3,0.65360283]
[1745606732859,5.54671362,1802.9,1802.3,0.65360283]
[1745606733266,11.09356572,1802.9,1802.3,0.65360283]
[1745606733483,12.20292229,1802.9,1802.3,0.65360283]
[1745606734062,0.7887,1802.8,1802.3,0.65360283]
[1745606736001,0.7887,1802.8,1802.3,1.47040283]
[1745606736296,0.7887,1802.8,1802.4,0.55]
[1745606736599,0.7887,1802.8,1802.5,0.65360283]
[1745606736784,0.8122,1803.1,1802.6,0.05547302]
[1745606736985,0.8122,1803.1,1802.6,0.82017302]
[1745606737304,0.8122,1803.1,1802.7,1.20360283]
[1745606738693,6.11,1803.2,1802.7,4.20360283]
[1745606738910,0.7773,1803.3,1802.7,4.20360283]
[1745606740165,0.7773,1803.3,1802.8,0.05546205]
[1745606740367,0.7773,1803.3,1802.9,1.46660283]
[1745606740558,1.2227936,1803.5,1803.0,0.55]
[1745606740757,1.2227936,1803.5,1803.0,0.60545615]
[1745606740958,1.2227936,1803.5,1803.0,3.00545615]
[1745606741211,0.4048936,1803.5,1803.2,0.813]
[1745606743275,0.4048936,1803.5,1803.3,0.65360283]
[1745606743997,0.4048936,1803.5,1803.2,0.813]
[1745606747979,0.4048936,1803.5,1803.1,0.30054562]
[1745606748310,6.30615765,1803.4,1803.0,7.254]
[1745606748515,7.63586377,1803.4,1803.0,7.254]
[1745606749014,2.09050612,1803.4,1803.0,7.254]
[1745606750406,0.86490832,1803.4,1803.0,7.254]
[1745606750783,6.41006761,1803.4,1803.0,7.254]
[1745606751291,0.86490832,1803.4,1803.0,7.254]
[1745606751687,6.4101776,1803.4,1803.0,7.254]
[1745606752011,0.86490832,1803.4,1803.0,7.254]
[1745606752315,6.41002139,1803.4,1803.0,7.254]
[1745606752611,0.64100214,1803.3,1803.0,7.254]
[1745606752793,0.7472491,1803.3,1803.0,7.254]
[1745606753618,0.10624696,1803.3,1803.0,7.254]
[1745606754090,5.65172536,1803.3,1803.0,7.254]
[1745606754600,5.65172536,1803.3,1803.0,4.854]
[1745606754777,6.3054041,1803.1,1802.7,4.853]
[1745606754978,5.54636104,1803.0,1802.7,4.853]
[1745606755179,6.83766288,1803.0,1802.7,4.853]
[1745606755375,1.29130184,1803.0,1802.7,4.853]
[1745606755804,0.10612533,1803.0,1802.7,4.853]
[1745606760798,0.7594,1803.1,1802.7,4.853]
[1745606761622,6.11,1803.2,1802.8,0.7711]
[1745606762287,6.11,1803.2,1802.9,1.20360283]
[1745606764004,6.11,1803.2,1803.1,1.20360283]
[1745606764203,0.4048936,1803.5,1803.1,1.20360283]
[1745606764517,0.4048936,1803.5,1803.1,6.05660283]
[1745606765321,0.4048936,1803.5,1803.2,0.8032]
[1745606767629,0.4048936,1803.5,1803.1,6.05660283]
[1745606767829,0.4048936,1803.5,1803.1,4.853]
[1745606768003,0.8307,1803.4,1803.1,4.853]
[1745606770627,0.1040386,1803.3,1803.1,4.853]
[1745606770830,0.1040386,1803.3,1803.2,2.4]
[1745606771687,6.29742328,1803.3,1803.2,2.4]
[1745606771893,0.75203428,1803.3,1803.2,2.4]
[1745606773028,0.1040386,1803.3,1803.2,2.4]
[1745606773214,0.4048936,1803.5,1803.2,2.4]
[1745606773421,0.10541614,1803.4,1803.2,3.05360283]
[1745606774823,0.10541614,1803.4,1803.3,0.8294]
[1745606775737,0.10541614,1803.4,1803.3,0.88484988]
[1745606776025,0.10541614,1803.4,1803.3,1.43484988]
[1745606776230,0.10541614,1803.4,1803.3,1.3794]
[1745606780934,0.10541614,1803.4,1803.2,7.251]
[1745606782037,5.65054641,1803.4,1803.2,2.4]
[1745606782333,6.348389,1803.3,1803.2,2.4]
[1745606782494,7.54828812,1803.3,1803.2,2.4]
[1745606782694,7.65590448,1803.3,1803.2,2.4]
[1745606784445,2.11051548,1803.3,1803.2,2.4]
[1745606785213,2.11051548,1803.3,1802.9,4.851]
[1745606785413,7.65599964,1803.3,1802.9,4.851]
[1745606785651,0.76559996,1803.2,1802.9,4.851]
[1745606785815,0.10761454,1803.1,1802.9,4.851]
[1745606788245,0.8108,1803.0,1802.9,4.851]
[1745606788550,0.91698287,1803.0,1802.9,4.851]
[1745606788754,0.91698287,1803.0,1802.7,3.65360283]
[1745606790825,0.10618287,1803.0,1802.7,3.65360283]
[1745606791262,0.7803,1803.1,1802.7,3.65360283]
[1745606791571,6.35507691,1803.3,1802.8,0.55]
[1745606791733,0.8095,1803.3,1802.8,0.55]
[1745606791933,12.0598125,1803.5,1802.9,1.47010283]
[1745606792152,2.03828125,1803.4,1802.9,1.47010283]
[1745606792348,0.8323,1803.4,1802.9,1.47010283]
[1745606792963,6.37744076,1803.4,1802.9,1.47010283]
[1745606794060,6.3773958,1803.4,1802.9,1.47010283]
[1745606794259,6.3773958,1803.4,1802.9,0.8165]
[1745606794462,5.5455252,1803.3,1802.9,0.8165]
[1745606794687,6.7378173,1803.3,1802.9,0.8165]
[1745606795761,6.7378173,1803.3,1803.0,2.4]
[1745606796171,1.1922921,1803.3,1803.0,2.4]
[1745606796467,6.37740929,1803.4,1803.0,2.4]
[1745606797659,0.8323,1803.4,1803.0,2.4]
[1745606797847,0.4048936,1803.5,1803.1,0.55]
[1745606798053,0.4048936,1803.5,1803.2,0.86095831]
[1745606798249,0.4048936,1803.5,1803.2,5.6555]
[1745606798464,0.4048936,1803.5,1803.3,1.20360283]
[1745606798667,0.4048936,1803.5,1803.2,5.6555]
[1745606799476,0.4048936,1803.5,1803.3,0.65360283]
[1745606799782,0.4048936,1803.5,1803.4,0.8066]
[1745606800455,0.4048936,1803.5,1803.4,1.3566]
[1745606801951,0.4048936,1803.5,1803.4,0.8066]
[1745606802253,0.51020931,1803.5,1803.4,0.8066]
[1745606803479,0.51020931,1803.5,1803.3,1.06372789]
[1745606805574,0.51020931,1803.5,1803.3,1.11917318]
[1745606805757,0.51020931,1803.5,1803.3,1.06372789]
[1745606806470,0.51020931,1803.5,1803.4,0.55]
[1745606807340,0.51020931,1803.5,1803.3,0.65360283]
[1745606807869,0.51020931,1803.5,1803.3,0.55]
[1745606808059,0.51020931,1803.5,1803.2,5.6566]
[1745606808744,0.51020931,1803.5,1803.2,6.08097065]
[1745606810685,0.51020931,1803.5,1803.2,5.6566]
[1745606811048,0.51020931,1803.5,1803.3,0.55]
[1745606814904,0.51020931,1803.5,1803.3,1.25904898]
[1745606815068,0.51020931,1803.5,1803.4,0.8112]
[1745606817733,0.4048936,1803.5,1803.4,0.8112]
[1745606818234,0.4048936,1803.5,1803.4,0.55]
[1745606818432,0.4048936,1803.5,1803.3,0.65360283]
[1745606821238,0.4048936,1803.5,1803.3,0.70904787]
[1745606821431,0.4048936,1803.5,1803.4,0.55]
[1745606824100,0.4048936,1803.5,1803.4,5.399]
[1745606825656,0.4048936,1803.5,1803.4,4.849]
[1745606827197,0.4048936,1803.5,1803.4,5.399]
[1745606827398,0.4048936,1803.5,1803.4,6.1644]
[1745606829851,0.4048936,1803.5,1803.4,5.399]
[1745606830643,0.4048936,1803.5,1803.4,4.849]
[1745606830999,1.1807936,1803.5,1803.4,4.849]
[1745606831208,1.1807936,1803.5,1803.1,4.847]
[1745606831549,1.85333389,1803.5,1803.1,4.847]
[1745606832355,1.1807936,1803.5,1803.1,5.50060283]
[1745606832557,1.1807936,1803.5,1803.2,0.55]
[1745606834270,0.9307936,1803.5,1803.2,0.55]
[1745606836176,0.1548936,1803.5,1803.2,1.3324]
[1745606836665,0.1548936,1803.5,1803.2,2.05736464]
[1745606836870,0.1548936,1803.5,1803.2,1.3324]
[1745606840375,0.1548936,1803.5,1803.2,0.55]
[1745606841983,0.1548936,1803.5,1803.1,5.50060283]
[1745606842144,0.7832,1803.4,1803.1,4.847]
[1745606842884,1.43149585,1803.4,1803.1,4.847]
[1745606843093,5.54542705,1803.3,1802.8,4.847]
[1745606843251,5.54614236,1803.1,1802.8,4.847]
[1745606843671,0.7832,1803.0,1802.8,4.847]
[1745606843872,6.3295781,1803.0,1802.8,4.847]
[1745606844173,5.54614236,1803.1,1802.5,4.847]
[1745606844174,0.7832,1802.8,1802.5,4.847]
[1745606846202,0.7505,1803.0,1802.5,4.847]
[1745606846563,6.29689225,1803.0,1802.5,4.847]
[1745606846798,0.7505,1803.0,1802.6,0.65360283]
[1745606847107,0.7505,1803.0,1802.6,1.46880283]
[1745606847332,0.8122,1803.2,1802.8,0.65360283]
[1745606847489,1.44797583,1803.2,1802.8,0.65360283]
[1745606848365,6.99387015,1803.2,1802.8,0.65360283]
[1745606849289,1.44797583,1803.2,1802.8,0.65360283]
[1745606850774,0.8122,1803.2,1802.8,0.65360283]
[1745606851567,6.35791163,1803.2,1802.8,0.65360283]
[1745606851979,11.90385216,1803.2,1802.8,0.65360283]
[1745606852175,0.8038,1803.1,1802.7,2.4]
[1745606852378,5.54643907,1803.0,1802.6,3.0]
[1745606852726,6.73607734,1803.0,1802.5,5.50060283]
[1745606853029,6.35067456,1802.9,1802.5,4.847]
[1745606853307,0.8038,1802.9,1802.5,4.847]
[1745606854832,0.8038,1802.9,1802.6,0.65360283]
[1745606855010,0.8015,1803.1,1802.8,0.65360283]
[1745606855306,5.54550815,1803.3,1802.8,0.70906756]
[1745606855307,6.3471008,1803.3,1802.8,0.70906756]
[1745606855480,6.3471008,1803.3,1802.8,0.65360283]
[1745606857395,11.8927505,1803.3,1802.8,0.65360283]
[1745606858075,6.3471008,1803.3,1802.8,0.65360283]
[1745606858387,5.54569775,1803.2,1802.8,0.65360283]
[1745606858618,6.73497761,1803.2,1802.8,0.65360283]
[1745606859004,6.73497761,1803.2,1802.7,1.3251]
[1745606859210,5.54603174,1803.1,1802.7,1.3251]
[1745606859528,6.32392704,1803.0,1802.6,1.43930283]
[1745606859826,0.7775,1803.0,1802.6,1.43930283]
[1745606860399,6.32384682,1803.0,1802.6,1.43930283]
[1745606860599,0.7775,1803.0,1802.6,1.43930283]
[1745606861039,6.73510142,1803.2,1802.8,0.65360283]
[1745606861040,0.7678,1803.2,1802.8,0.65360283]
[1745606861331,0.7678,1803.2,1802.9,0.7803]
[1745606861529,5.5455567,1803.3,1802.9,0.7803]
[1745606861831,11.65520536,1803.4,1802.7,0.7803]
[1745606861832,5.54612346,1803.1,1802.7,0.7803]
[1745606862055,5.54633134,1803.0,1802.5,6.05060283]
[1745606862199,5.54633134,1803.0,1802.6,0.8138]
[1745606862403,6.73235682,1803.0,1802.6,0.8138]
[1745606862895,5.54677922,1802.9,1802.5,5.6608]
[1745606863098,6.73235682,1803.0,1802.5,5.6608]
[1745606863337,1.18602548,1803.0,1802.6,0.65360283]
[1745606863498,0.7678,1803.1,1802.6,0.65360283]
[1745606864637,6.31390203,1803.1,1802.6,0.65360283]
[1745606864938,5.54634515,1803.0,1802.6,0.55]
[1745606865102,5.54634515,1803.0,1802.6,1.20360283]
[1745606865633,0.7678,1803.1,1802.6,1.20360283]
[1745606865938,5.54640301,1803.0,1802.6,0.65360283]
[1745606866638,5.54710088,1802.8,1802.5,4.847]
[1745606868113,5.54710088,1802.8,1802.3,4.41920283]
[1745606868114,11.0943091,1802.8,1802.3,1.41920283]
[1745606868448,5.54723525,1802.7,1802.3,1.41920283]
[1745606868645,5.54723525,1802.7,1802.2,4.846]
[1745606868646,5.5481388,1802.5,1802.2,4.846]
[1745606868851,6.10240145,1802.6,1802.2,4.846]
[1745606869143,6.10240145,1802.6,1802.2,5.49960283]
[1745606869350,0.55472353,1802.6,1802.2,5.49960283]
[1745606869512,11.90067755,1802.7,1802.2,5.49960283]
[1745606869711,5.5478539,1802.5,1802.2,5.49960283]
[1745606869913,5.54758245,1802.6,1802.2,5.49960283]
[1745606870249,5.54808181,1802.5,1802.2,4.846]
[1745606870745,5.54846584,1802.3,1802.2,4.846]
[1745606870952,6.36005812,1802.4,1802.2,4.846]
[1745606871149,7.55086765,1802.4,1802.2,4.846]
[1745606871351,7.55089476,1802.4,1801.8,4.88905113]
[1745606871536,7.55089476,1802.4,1801.9,0.7608]
[1745606871537,13.66089476,1802.4,1801.9,0.7608]
[1745606873150,5.54886679,1802.2,1801.9,0.7608]
[1745606873351,6.10375347,1802.2,1801.8,4.88905113]
[1745606873519,6.36098329,1802.1,1801.8,4.88905113]
[1745606874424,0.8118,1802.1,1801.8,4.88905113]
[1745606874623,6.36110586,1802.1,1801.8,0.04205113]
[1745606874849,0.63611059,1802.0,1801.8,0.04205113]
[1745606875159,11.73530854,1802.0,1801.8,0.04205113]
[1745606875363,6.18566969,1802.0,1801.8,0.04205113]
[1745606875864,0.63611059,1802.0,1801.8,0.04205113]
[1745606876017,6.18550303,1802.0,1801.8,0.04205113]
[1745606876218,6.94184784,1801.9,1801.8,0.04205113]
[1745606876658,1.3921503,1801.9,1801.8,0.04205113]
[1745606876855,6.94184784,1801.9,1801.8,0.04205113]
[1745606878122,13.05184784,1801.9,1801.8,0.04205113]
[1745606878575,13.46284207,1801.9,1801.8,0.04205113]
[1745606882456,6.7285503,1801.9,1801.8,0.04205113]
[1745606882660,6.11,1801.9,1801.8,0.04205113]
[1745606883171,12.41519754,1801.9,1801.8,0.04205113]
[1745606884445,6.11,1801.9,1801.8,0.04205113]
[1745606888029,11.65969754,1801.9,1801.8,0.04205113]
[1745606888435,5.54969754,1801.9,1801.8,0.04205113]
[1745606888652,7.4882207,1801.9,1801.8,0.04205113]
[1745606888969,7.4882207,1801.9,1801.8,1e-08]
[1745606888970,18.4452207,1801.9,1801.8,1e-08]
[1745606889167,21.4452207,1801.9,1801.8,1e-08]
[1745606889535,21.75454519,1801.9,1801.8,1e-08]
[1745606890330,5.55182544,1801.3,1801.1,0.05]
[1745606890533,5.55185431,1801.2,1801.1,0.05]
[1745606891981,0.63602254,1801.3,1801.1,0.05]
[1745606892143,5.55185431,1801.2,1801.1,0.05]
[1745606893679,6.74602254,1801.3,1801.1,0.05]
[1745606894056,12.29757918,1801.3,1801.1,0.05]
[1745606894255,6.9012,1801.6,1801.1,1.50480283]
[1745606894572,6.9012,1801.6,1801.1,0.8512]
[1745606894737,12.45197486,1801.6,1801.1,1.50480283]
[1745606894934,5.55094219,1801.5,1801.1,1.50480283]
[1745606895486,5.55126829,1801.4,1801.1,0.8512]
[1745606895688,6.66148934,1801.4,1801.1,0.8512]
[1745606895874,5.55157518,1801.3,1801.1,0.8512]
[1745606896300,5.55157518,1801.3,1801.1,0.05]
[1745606896711,6.33297518,1801.3,1801.1,0.05]
[1745606897174,5.55185431,1801.2,1801.1,0.05]
[1745606897374,6.74033726,1801.2,1801.1,0.05]
[1745606898790,12.85033726,1801.2,1801.1,0.05]
[1745606900713,7.29848295,1801.2,1801.1,0.05]
[1745606900907,12.85033726,1801.2,1801.1,0.05]
[1745606901404,7.29848295,1801.2,1801.1,0.05]
[1745606901802,12.85033726,1801.2,1801.1,0.05]
[1745606903612,7.29848295,1801.2,1801.1,0.05]
[1745606903987,12.85033726,1801.2,1801.1,0.05]
[1745606904898,7.29848295,1801.2,1801.1,0.05]
[1745606905100,6.11,1801.2,1801.1,0.811]
[1745606905421,6.11,1801.5,1801.1,1.46460283]
[1745606905590,5.55140091,1801.4,1801.1,1.46460283]
[1745606905908,6.11,1801.5,1801.1,1.46460283]
[1745606906908,11.66093382,1801.5,1801.1,1.46460283]
[1745606907102,13.46367403,1801.5,1801.1,1.46460283]
[1745606908908,5.55124146,1801.4,1801.1,1.46460283]
[1745606909078,13.46367403,1801.5,1801.1,1.46460283]
[1745606909279,5.55128316,1801.4,1801.1,1.46460283]
[1745606909601,13.46367403,1801.5,1801.1,1.46460283]
[1745606910500,6.89769082,1801.4,1801.1,0.811]
[1745606911128,5.55185431,1801.2,1801.1,0.05]
[1745606912377,6.89778753,1801.4,1801.1,0.05]
[1745606912577,1.3463674,1801.4,1801.1,0.05]
[1745606912811,1.3463674,1801.4,1801.2,0.8258]
[1745606913324,6.89770204,1801.4,1801.2,0.8258]
[1745606913618,1.3463674,1801.4,1801.2,0.8258]
[1745606913823,0.31087471,1801.3,1801.2,0.8258]
[1745606914605,6.11,1801.5,1801.2,0.8258]
[1745606914884,6.11,1801.8,1801.4,0.8314]
[1745606915086,6.77748668,1801.8,1801.4,0.8314]
[1745606915280,0.31089514,1801.7,1801.4,0.8314]
[1745606915687,0.31100194,1801.6,1801.4,0.8314]
[1745606915906,6.77746665,1801.8,1801.4,0.8314]
[1745606916105,0.31100209,1801.7,1801.4,0.8314]
[1745606916478,0.31100209,1801.6,1801.4,0.8314]
[1745606916878,0.31100209,1801.6,1801.2,0.8314]
[1745606916879,0.89713547,1801.6,1801.2,0.8314]
[1745606917118,0.31100209,1801.5,1801.2,0.8314]
[1745606917531,6.34663979,1801.7,1801.2,0.8314]
[1745606917532,6.34656581,1801.7,1801.2,0.8314]
[1745606917695,6.77750338,1801.8,1801.3,0.65360283]
[1745606918210,0.31127305,1801.7,1801.3,0.65360283]
[1745606918411,6.57059162,1801.7,1801.3,0.65360283]
[1745606918579,5.86203517,1801.6,1801.3,0.65360283]
[1745606918783,0.31127305,1801.6,1801.3,0.65360283]
[1745606919182,0.31127305,1801.5,1801.4,0.8023]
[1745606921825,6.77737404,1801.8,1801.4,0.8023]
[1745606921991,0.6777374,1801.7,1801.4,0.8023]
[1745606922339,6.33062851,1801.6,1801.1,0.8323]
[1745606922682,5.55093672,1801.5,1801.1,0.8323]
[1745606922892,6.22817708,1801.7,1801.2,0.65360283]
[1745606923229,0.6777374,1801.7,1801.2,1.44020283]
[1745606923429,1.22735197,1801.8,1801.3,0.7866]
[1745606923927,5.86173431,1801.7,1801.3,0.7866]
[1745606924531,5.55095999,1801.5,1801.3,0.7866]
[1745606924730,5.86167298,1801.7,1801.3,0.7866]
[1745606925023,5.55041227,1801.7,1801.3,0.7866]
[1745606925191,0.55504123,1801.6,1801.3,0.7866]
[1745606925889,1.22735197,1801.8,1801.3,0.7866]
[1745606926215,6.77736169,1801.8,1801.4,0.65360283]
[1745606926617,6.77736169,1801.8,1801.5,0.799]
[1745606928029,5.55055703,1801.7,1801.2,0.7705]
[1745606928201,6.1058749,1801.6,1801.2,0.7705]
[1745606928800,0.5550557,1801.6,1801.2,0.7705]
[1745606929006,12.32775779,1801.8,1801.2,0.7705]
[1745606929198,0.31111498,1801.7,1801.2,0.7705]
[1745606929834,5.86147586,1801.7,1801.2,0.7705]
[1745606930229,5.55036088,1801.7,1801.2,0.7705]
[1745606930634,6.77745627,1801.8,1801.2,0.7705]
[1745606930793,0.67774563,1801.7,1801.2,0.7705]
[1745606930993,6.22807302,1801.7,1801.2,0.7705]
[1745606931497,0.67774563,1801.7,1801.4,0.7722]
[1745606933629,6.22818063,1801.7,1801.4,0.7722]
[1745606933997,0.67774563,1801.7,1801.4,0.7722]
[1745606934291,6.7775278,1801.8,1801.4,0.7722]
[1745606935545,12.32776067,1801.8,1801.4,0.7722]
[1745606935706,0.31128321,1801.7,1801.4,0.7722]
[1745606936597,12.32779621,1801.8,1801.4,0.7722]
[1745606937232,5.55042371,1801.7,1801.4,0.7722]
[1745606937472,6.78321886,1801.7,1801.4,0.7722]
[1745606938536,5.55062318,1801.6,1801.4,0.7722]
[1745606938840,5.55062318,1801.6,1801.2,5.6209]
[1745606939048,6.37822318,1801.6,1801.2,5.6209]
[1745606939537,5.55062318,1801.6,1801.2,5.6209]
[1745606939836,13.16148042,1801.7,1801.2,5.6209]
[1745606940141,12.32775058,1801.8,1801.3,0.8274]
[1745606940438,6.77748208,1801.8,1801.3,0.65360283]
[1745606940601,1.22735197,1801.8,1801.4,0.7829]
[1745606940804,11.65983157,1801.9,1801.4,0.7829]
[1745606941112,5.55003724,1801.8,1801.4,0.7829]
[1745606941330,5.55064847,1801.6,1801.4,0.7829]
[1745606941669,5.55000677,1801.8,1801.4,0.7829]
[1745606942136,0.31142682,1801.7,1801.4,0.7829]
[1745606942501,0.31142682,1801.7,1801.5,0.65360283]
[1745606942635,0.31142682,1801.7,1801.6,0.8112]
[1745606943337,11.65975418,1801.9,1801.6,0.8112]
[1745606943572,12.8257296,1801.9,1801.6,0.8112]
[1745606944026,5.55016736,1801.8,1801.6,0.8112]
[1745606944458,5.55031359,1801.7,1801.3,0.65360283]
[1745606944671,5.55063302,1801.6,1801.4,0.7539]
[1745606944962,5.55108178,1801.5,1801.2,5.5999]
[1745606945175,5.55063302,1801.6,1801.2,5.5999]
[1745606945379,6.74012673,1801.6,1801.2,5.5999]
[1745606945884,1.18949371,1801.6,1801.2,5.5999]
[1745606946775,5.55014658,1801.8,1801.3,1.40750283]
[1745606947081,0.3116738,1801.7,1801.3,1.40750283]
[1745606947391,0.3116738,1801.7,1801.3,0.65360283]
[1745606947562,0.3116738,1801.7,1801.6,0.7539]
[1745606948106,0.3116738,1802.0,1801.6,0.7539]
[1745606948377,0.3116738,1802.0,1801.8,0.7539]
[1745606949170,5.54877385,1802.2,1801.8,0.7539]
[1745606949381,1.80012959,1802.2,1801.8,0.7539]
[1745606949834,6.11,1802.3,1801.8,0.7539]
[1745606950033,0.31143308,1802.2,1801.8,0.7539]
[1745606951042,0.31143308,1802.1,1801.8,0.7539]
[1745606952069,11.65851269,1802.3,1801.8,0.7539]
[1745606952275,5.54879242,1802.2,1801.8,0.7539]
[1745606952439,7.26952293,1802.2,1801.8,0.7539]
[1745606952636,1.72073051,1802.2,1801.8,0.7539]
[1745606952842,11.65868223,1802.3,1801.8,0.7539]
[1745606953042,5.86007287,1802.2,1801.8,0.7539]
[1745606953267,5.54924473,1802.1,1801.8,0.7539]
[1745606953781,5.54985737,1801.9,1801.6,5.594]
[1745606953948,5.54985737,1801.9,1801.5,3.65360283]
[1745606953949,5.55040462,1801.7,1801.4,0.75]
[1745606954155,5.55063449,1801.6,1801.3,4.844]
[1745606954368,5.55063449,1801.6,1801.2,0.75]
[1745606954952,6.66498574,1801.8,1801.2,0.75]
[1745606955150,5.55082245,1801.6,1801.2,0.75]
[1745606957140,5.55096273,1801.5,1801.2,0.75]
[1745606957335,5.55081085,1801.6,1801.2,0.75]
[1745606958184,5.55118613,1801.5,1801.1,0.05]
[1745606958546,11.10236497,1801.5,1801.1,0.05]
[1745606958872,5.55161193,1801.3,1801.1,0.05]
[1745606959079,6.66164389,1801.4,1801.1,0.05]
[1745606960782,1.1102365,1801.4,1801.1,0.05]
[1745606961345,6.11,1801.5,1801.2,0.65360283]
[1745606961685,6.11,1801.5,1801.3,0.7959]
[1745606964684,6.21703146,1801.7,1801.3,0.7959]
[1745606965452,0.66649857,1801.7,1801.3,0.7959]
[1745606965758,0.97738802,1801.7,1801.3,0.7959]
[1745606966490,0.97738802,1801.7,1801.4,0.65360283]
[1745606966691,0.31088945,1801.7,1801.4,0.65360283]
[1745606966989,6.66498574,1801.8,1801.4,0.65360283]
[1745606967687,6.11,1801.8,1801.6,0.65360283]
[1745606969471,6.11,1801.8,1801.5,0.8084]
[1745606970593,5.54983534,1801.9,1801.5,0.8084]
[1745606971089,11.65959951,1802.0,1801.5,0.8084]
[1745606971895,0.31086758,1801.9,1801.5,0.8084]
[1745606972370,1.34547654,1801.9,1801.5,0.8084]
[1745606972888,6.58440949,1801.9,1801.5,0.8084]
[1745606973202,6.33715447,1801.8,1801.4,6.30080283]
[1745606973401,11.88743513,1801.8,1801.4,6.30080283]
[1745606973694,5.55041695,1801.7,1801.4,0.8032]
[1745606973867,0.5550417,1801.6,1801.4,0.8032]
[1745606974065,5.55041695,1801.7,1801.4,0.8032]
[1745606975998,6.58445137,1801.9,1801.4,1.45680283]
[1745606976500,0.31088979,1801.8,1801.4,1.45680283]
[1745606976802,0.31088979,1801.8,1801.6,0.65360283]
[1745606976993,0.31088979,1801.8,1801.7,0.8249]
[1745606977305,11.65927638,1802.1,1801.7,0.8249]
[1745606977616,1.16592764,1802.0,1801.7,0.8249]
[1745606978105,1.47677049,1802.0,1801.7,0.8249]
[1745606978601,5.54985673,1801.9,1801.5,5.6689]
[1745606979492,7.52601531,1802.0,1801.5,5.6689]
[1745606980026,5.5498379,1801.9,1801.5,5.6689]
[1745606980190,6.10514375,1801.8,1801.5,4.844]
[1745606980380,0.55498379,1801.8,1801.5,4.844]
[1745606980580,6.10499605,1801.8,1801.5,4.844]
[1745606981190,0.55498379,1801.8,1801.5,4.844]
[1745606981395,6.10501357,1801.8,1801.5,4.844]
[1745606981604,0.61050136,1801.7,1801.5,4.844]
[1745606983213,6.11,1801.8,1801.5,5.49760283]
[1745606983515,6.11,1801.8,1801.6,0.775]
[1745606984221,6.11,1802.2,1801.8,0.775]
[1745606984514,5.54881864,1802.2,1801.8,0.775]
[1745606984883,0.31118297,1802.1,1801.8,0.775]
[1745606985484,5.86032344,1802.1,1801.8,0.775]
[1745606985691,6.13561967,1802.0,1801.6,0.7868]
[1745606985908,6.44680264,1802.0,1801.6,0.7868]
[1745606986115,5.5497435,1801.9,1801.6,0.7868]
[1745606986714,6.13561967,1802.0,1801.6,0.7868]
[1745606986920,5.5497031,1801.9,1801.6,0.7868]
[1745606987284,6.71836515,1801.9,1801.5,6.30820283]
[1745606987482,1.16853228,1801.9,1801.5,6.30820283]
[1745606987708,5.54953028,1802.0,1801.5,6.30820283]
[1745606988079,11.65953028,1802.0,1801.5,6.30820283]
[1745606988287,0.31115272,1801.9,1801.5,6.30820283]
[1745606989320,0.31115272,1801.9,1801.6,0.8171]
[1745606989520,6.11,1802.0,1801.6,0.8171]
[1745606990218,7.35360339,1802.0,1801.6,0.8171]
[1745606990398,12.90300328,1802.0,1801.6,0.8171]
[1745606990716,5.54969856,1801.9,1801.6,0.8171]
[1745606990922,12.90300328,1802.0,1801.6,0.8171]
[1745606991219,5.54971341,1801.9,1801.6,0.8171]
[1745606991621,12.90300328,1802.0,1801.6,0.8171]
[1745606992132,5.86110328,1801.9,1801.6,0.8171]
[1745606992790,5.54972966,1801.9,1801.6,0.8171]
[1745606993427,18.45268078,1802.0,1801.6,0.8171]
[1745606993602,5.54970552,1801.9,1801.6,0.8171]
[1745606993918,0.31148969,1801.8,1801.6,0.8171]
[1745606994425,5.55083494,1801.6,1801.4,0.8321]
[1745606994593,5.55083494,1801.6,1801.3,5.6731]